[Event "Turkish Cup 2024"]
[Site "Denizli"]
[Date "2024.08.02"]
[Round "6"]
[White "Torun, Kagan"]
[Black "Sirin, Ahmet"]
[Result "1-0"]
[ECO "D11"]
[WhiteElo "1868"]
[BlackElo "1660"]
[Annotator "NA"]
[PlyCount "103"]
[EventDate "2024.08.01"]
[EventType "swiss"]
[EventCountry "TUR"]
[SourceTitle "playchess.com"]
[Source "ChessBase"]
[SourceQuality "1"]
[TimeControl "5400+30"]

1. d4 {[%emt 0:05:00]} d5 {[%emt 0:01:00]} 2. Nf3 {[%emt 0:00:00]} Nf6 {[%emt 0:00:30]} 3. c4 {[%emt 0:00:00]} c6 {[%emt 0:00:00]} 4. g3 {[%emt 0:03:30]} Bg4 {[%emt 0:03:00]} 5. Bg2 {[%emt 0:00:00]} Nbd7 {[%emt 0:02:30]} 6. Nc3 {[%emt 0:03:00]} e6 {[%emt 0:01:30]} 7. Qb3 {[%emt 0:00:30]} Qb6 {[%emt 0:01:30]} 8. O-O {[%emt 0:03:30]} Be7 {[%emt 0:03:30]} 9. c5 {[%emt 0:03:30]} Qxb3 {[%emt 0:00:30]} 10. axb3 {[%emt 0:00:30]} Bxf3 {[%emt 0:03:30]} 11. Bxf3 {[%emt 0:13:30]} e5 {[%emt 0:01:30]} 12. e3 {[%emt 0:00:30]} O-O {[%emt 0:02:30]} 13. b4 {[%emt 0:00:30]} a6 {[%emt 0:00:30]} 14. dxe5 {[%emt 0:06:30]} Nxe5 {[%emt 0:00:30]} 15. Be2 {[%emt 0:00:00]} a5 {[%emt 0:05:30]} 16. Rxa5 {[%emt 0:10:00]} Rxa5 {[%emt 0:00:30]} 17. bxa5 {[%emt 0:00:00]} Bxc5 {[%emt 0:00:00]} 18. Bd2 {[%emt 0:07:00]} Ra8 {[%emt 0:07:00]} 19. Ra1 {[%emt 0:04:30]} Kf8 {[%emt 0:08:30]} 20. Na4 {[%emt 0:03:30]} Ne4 {[%emt 0:03:30]} 21. Nxc5 {[%emt 0:04:30]} Nxd2 {[%emt 0:06:30]} 22. Nxb7 {[%emt 0:03:30]} Ke7 {[%emt 0:03:30]} 23. Nc5 {[%emt 0:04:30]} Kd6 {[%emt 0:00:30]} 24. b4 {[%emt 0:00:30]} Nec4 {[%emt 0:02:30]} 25. Bxc4 {[%emt 0:02:30]} Nxc4 {[%emt 0:00:00]} 26. Kf1 {[%emt 0:01:30]} Rb8 {[%emt 0:03:00]} 27. Nd3 {[%emt 0:02:03]} Ne5 {[%emt 0:04:30]} 28. Nxe5 {[%emt 0:05:46]} Kxe5 {[%emt 0:00:30]} 29. a6 {[%emt 0:00:30]} Ra8 {[%emt 0:02:30]} 30. Ke2 {[%emt 0:03:09]} Kd6 {[%emt 0:00:30]} 31. Kd3 {[%emt 0:01:54]} Kc7 {[%emt 0:00:30]} 32. Kd4 {[%emt 0:00:33]} Kb6 {[%emt 0:00:00]} 33. a7 {[%emt 0:00:31]} f6 {[%emt 0:07:00]} 34. Ra5 {[%emt 0:05:35]} h6 {[%emt 0:04:30]} 35. g4 {[%emt 0:00:30]} Kb7 {[%emt 0:05:32]} 36. Kc5 {[%emt 0:00:33]} g6 {[%emt 0:00:51]} 37. b5 {[%emt 0:00:43]} cxb5 {[%emt 0:02:54]} 38. Rxb5+ {[%emt 0:00:44]} Ka6 {[%emt 0:00:45]} 39. Rb6+ {[%emt 0:00:42]} Kxa7 {[%emt 0:00:43]} 40. Rxf6 {[%emt 0:00:07]} Rg8 {[%emt 0:00:35]} 41. Kxd5 {[%emt 0:00:06]} h5 {[%emt 0:00:37]} 42. g5 {[%emt 0:00:30]} Rd8+ {[%emt 0:00:00]} 43. Ke6 {[%emt 0:00:00]} Rd1 {[%emt 0:00:33]} 44. Rxg6 {[%emt 0:00:43]} Rh1 {[%emt 0:00:09]} 45. Rh6 {[%emt 0:00:35]} Rxh2 {[%emt 0:00:36]} 46. f4 {[%emt 0:00:06]} Re2 {[%emt 0:00:15]} 47. Rxh5 {[%emt 0:00:30]} Rxe3+ {[%emt 0:00:00]} 48. Kf6 {[%emt 0:00:16]} Kb7 {[%emt 0:00:07]} 49. Rh7+ {[%emt 0:00:00]} Kc8 {[%emt 0:00:12]} 50. g6 {[%emt 0:00:00]} Rf3 {[%emt 0:01:00]} 51. g7 {[%emt 0:00:13]} Rxf4+ {[%emt 0:00:00]} 52. Kg5 {[%emt 0:00:00]} 1-0

[Event "Turkish Cup 2024"]
[Site "Denizli"]
[Date "2024.08.02"]
[Round "6"]
[White "Callioglu, Yigit Sarp"]
[Black "Yilmaz, Kerem Tuna"]
[Result "1/2-1/2"]
[ECO "C54"]
[WhiteElo "1863"]
[BlackElo "2025"]
[Annotator "ChessBase"]
[PlyCount "105"]
[EventDate "2024.08.01"]
[EventType "swiss"]
[EventCountry "TUR"]
[SourceTitle "playchess.com"]
[Source "ChessBase"]
[SourceQuality "1"]
[TimeControl "5400+30"]

1. e4 {[%emt 0:01:00]} e5 {[%emt 0:02:00]} 2. Nf3 {[%emt 0:00:00]} Nc6 {[%emt 0:01:30]} 3. Bc4 {[%emt 0:01:00]} Bc5 {[%emt 0:03:30]} 4. O-O {[%emt 0:00:30]} Nf6 {[%emt 0:00:30]} 5. d3 {[%emt 0:00:30]} d6 {[%emt 0:00:30]} 6. c3 {[%emt 0:05:30]} a5 {[%emt 0:08:30]} 7. h3 {[%emt 0:12:30]} Ba7 {[%emt 0:07:30]} 8. Re1 {[%emt 0:02:30]} h6 {[%emt 0:02:30]} 9. Nbd2 {[%emt 0:03:30]} g5 {[%emt 0:02:30]} 10. Nf1 {[%emt 0:23:30]} g4 {[%emt 0:05:30]} 11. hxg4 {[%emt 0:00:30]} Bxg4 {[%emt 0:01:30]} 12. N1h2 {[%emt 0:07:30]} Qd7 {[%emt 0:06:30]} 13. d4 {[%emt 0:12:30]} exd4 {[%emt 0:29:30]} 14. e5 {[%emt 0:00:30]} dxe5 {[%emt 0:01:30]} 15. Nxe5 {[%emt 0:00:30]} Bxd1 {[%emt 0:03:30]} 16. Nxd7+ {[%emt 0:00:30]} Kxd7 {[%emt 0:00:30]} 17. Rxd1 {[%emt 0:00:30]} Rad8 {[%emt 0:02:57]} 18. cxd4 {[%emt 0:13:22]} Bxd4 {[%emt 0:01:43]} 19. Nf3 {[%emt 0:00:28]} Kc8 {[%emt 0:00:43]} 20. Nxd4 {[%emt 0:00:19]} Nxd4 {[%emt 0:00:33]} 21. Bf4 {[%emt 0:01:10]} Rhg8 {[%emt 0:07:47]} 22. Kf1 {[%emt 0:02:47]} Nc2 {[%emt 0:05:10]} 23. Rac1 {[%emt 0:01:09]} Rxd1+ {[%emt 0:02:55]} 24. Rxd1 {[%emt 0:00:01]} Rd8 {[%emt 0:01:56]} 25. Rxd8+ {[%emt 0:03:12]} Kxd8 {[%emt 0:00:30]} 26. Bxf7 {[%emt 0:00:02]} Ke7 {[%emt 0:00:56]} 27. Bg6 {[%emt 0:00:20]} Nd5 {[%emt 0:00:32]} 28. Bxh6 {[%emt 0:01:10]} Nd4 {[%emt 0:00:12]} 29. Be4 {[%emt 0:00:31]} Ke6 {[%emt 0:00:12]} 30. g4 {[%emt 0:02:57]} b5 {[%emt 0:01:02]} 31. Be3 {[%emt 0:01:36]} Nc6 {[%emt 0:00:16]} 32. Bxd5+ {[%emt 0:01:47]} Kxd5 {[%emt 0:00:30]} 33. Bf4 {[%emt 0:00:30]} Nb4 {[%emt 0:00:30]} 34. Bxc7 {[%emt 0:00:30]} a4 {[%emt 0:00:30]} 35. Ke2 {[%emt 0:00:30]} Nxa2 {[%emt 0:00:30]} 36. f4 {[%emt 0:00:30]} Nb4 {[%emt 0:00:30]} 37. g5 {[%emt 0:00:30]} Ke6 {[%emt 0:00:30]} 38. Kf3 {[%emt 0:00:30]} Kf5 {[%emt 0:00:30]} 39. g6 {[%emt 0:00:30]} Kxg6 {[%emt 0:00:30]} 40. Ke4 {[%emt 0:00:30]} Kf6 {[%emt 0:00:38]} 41. Be5+ {[%emt 0:02:34]} Ke6 {[%emt 0:00:30]} 42. f5+ {[%emt 0:00:20]} Kd7 {[%emt 0:00:00]} 43. Bc3 {[%emt 0:00:26]} Nc6 {[%emt 0:00:00]} 44. Kd5 {[%emt 0:00:42]} b4 {[%emt 0:00:21]} 45. Bg7 {[%emt 0:00:24]} Ne7+ {[%emt 0:00:41]} 46. Ke4 {[%emt 0:00:34]} Nc6 {[%emt 0:01:08]} 47. Kd5 {[%emt 0:00:28]} Ne7+ {[%emt 0:00:54]} 48. Ke4 {[%emt 0:00:30]} Nc6 {[%emt 0:00:00]} 49. Kd3 {[%emt 0:00:00]} a3 {[%emt 0:00:40]} 50. b3 {[%emt 0:00:59]} Na5 {[%emt 0:00:07]} 51. Kc2 {[%emt 0:00:14]} Ke7 {[%emt 0:00:06]} 52. Bd4 {[%emt 0:00:37]} Kf7 {[%emt 0:00:17]} 53. Bc5 {[%emt 0:00:49]} 1/2-1/2

[Event "Turkish Cup 2024"]
[Site "Denizli"]
[Date "2024.08.02"]
[Round "6"]
[White "Kurdas, Halil Ibrahim"]
[Black "Kavri, Yusuf Eren"]
[Result "0-1"]
[ECO "B67"]
[WhiteElo "1855"]
[BlackElo "2090"]
[Annotator "ChessBase"]
[PlyCount "86"]
[EventDate "2024.08.01"]
[EventType "swiss"]
[EventCountry "TUR"]
[SourceTitle "playchess.com"]
[Source "ChessBase"]
[SourceQuality "1"]
[TimeControl "5400+30"]

1. e4 {[%emt 0:01:00]} c5 {[%emt 0:03:00]} 2. Nf3 {[%emt 0:00:30]} d6 {[%emt 0:00:30]} 3. d4 {[%emt 0:00:00]} cxd4 {[%emt 0:00:30]} 4. Nxd4 {[%emt 0:00:00]} Nf6 {[%emt 0:00:00]} 5. Nc3 {[%emt 0:00:30]} Nc6 {[%emt 0:00:00]} 6. Bg5 {[%emt 0:00:30]} e6 {[%emt 0:00:00]} 7. Qd2 {[%emt 0:00:30]} a6 {[%emt 0:00:00]} 8. O-O-O {[%emt 0:00:30]} Bd7 {[%emt 0:00:00]} 9. f3 {[%emt 0:00:00]} Be7 {[%emt 0:00:00]} 10. h4 {[%emt 0:00:00]} h6 {[%emt 0:01:30]} 11. Be3 {[%emt 0:00:30]} h5 {[%emt 0:00:00]} 12. Kb1 {[%emt 0:01:30]} Ne5 {[%emt 0:04:00]} 13. f4 {[%emt 0:07:30]} Neg4 {[%emt 0:00:30]} 14. f5 {[%emt 0:00:30]} b5 {[%emt 0:04:30]} 15. fxe6 {[%emt 0:01:30]} fxe6 {[%emt 0:00:30]} 16. Bd3 {[%emt 0:01:30]} O-O {[%emt 0:17:30]} 17. Rdf1 {[%emt 0:04:30]} Nxe3 {[%emt 0:03:30]} 18. Qxe3 {[%emt 0:00:00]} Ng4 {[%emt 0:00:30]} 19. Qg3 {[%emt 0:07:00]} Qb6 {[%emt 0:00:30]} 20. Nf3 {[%emt 0:01:30]} b4 {[%emt 0:06:30]} 21. Nd1 {[%emt 0:02:30]} Qc5 {[%emt 0:12:30]} 22. e5 {[%emt 0:10:30]} dxe5 {[%emt 0:04:30]} 23. Ng5 {[%emt 0:06:30]} Rxf1 {[%emt 0:12:30]} 24. Rxf1 {[%emt 0:03:30]} Bxg5 {[%emt 0:00:30]} 25. hxg5 {[%emt 0:00:00]} Rf8 {[%emt 0:00:30]} 26. Rh1 {[%emt 0:02:00]} e4 {[%emt 0:02:30]} 27. Bxe4 {[%emt 0:07:30]} Qxg5 {[%emt 0:00:00]} 28. Qd6 {[%emt 0:01:30]} Nf6 {[%emt 0:01:00]} 29. Rf1 {[%emt 0:07:30]} a5 {[%emt 0:00:30]} 30. Bd3 {[%emt 0:02:30]} Qd5 {[%emt 0:03:30]} 31. Qg3 {[%emt 0:00:30]} Ng4 {[%emt 0:10:27]} 32. Rh1 {[%emt 0:04:30]} Bb5 {[%emt 0:02:05]} 33. Bh7+ {[%emt 0:03:30]} Kxh7 {[%emt 0:02:21]} 34. Qxg4 {[%emt 0:00:30]} g6 {[%emt 0:00:27]} 35. Ne3 {[%emt 0:01:30]} Qe5 {[%emt 0:00:39]} 36. Qh3 {[%emt 0:00:30]} Bc6 {[%emt 0:02:02]} 37. Rd1 {[%emt 0:00:30]} a4 {[%emt 0:02:00]} 38. Nc4 {[%emt 0:04:48]} Qe2 {[%emt 0:01:57]} 39. Ne3 {[%emt 0:00:30]} b3 {[%emt 0:01:34]} 40. Rc1 {[%emt 0:01:25]} bxc2+ {[%emt 0:00:30]} 41. Ka1 {[%emt 0:00:02]} Qd2 {[%emt 0:00:27]} 42. Qh1 {[%emt 0:01:03]} Qxe3 {[%emt 0:00:30]} 43. Rxc2 {[%emt 0:00:00]} Bb5 {[%emt 0:00:35]} 0-1

[Event "Turkish Cup 2024"]
[Site "Denizli"]
[Date "2024.08.02"]
[Round "6"]
[White "Tektas, Onur Efe"]
[Black "Topal, Hasan Gokmen"]
[Result "0-1"]
[ECO "B30"]
[WhiteElo "1851"]
[BlackElo "1905"]
[Annotator "ChessBase"]
[PlyCount "152"]
[EventDate "2024.08.01"]
[EventType "swiss"]
[EventCountry "TUR"]
[SourceTitle "playchess.com"]
[Source "ChessBase"]
[SourceQuality "1"]
[TimeControl "5400+30"]

1. e4 {[%emt 0:01:00]} c5 {[%emt 0:01:00]} 2. Nf3 {[%emt 0:00:30]} Nc6 {[%emt 0:00:30]} 3. Bb5 {[%emt 0:00:30]} Nf6 {[%emt 0:00:30]} 4. Nc3 {[%emt 0:00:30]} Qc7 {[%emt 0:00:30]} 5. O-O {[%emt 0:00:30]} Nd4 {[%emt 0:00:30]} 6. d3 {[%emt 0:00:30]} a6 {[%emt 0:19:30]} 7. Ba4 {[%emt 0:01:30]} b5 {[%emt 0:01:30]} 8. Bb3 {[%emt 0:00:30]} Nxb3 {[%emt 0:00:30]} 9. axb3 {[%emt 0:00:00]} Bb7 {[%emt 0:00:00]} 10. Re1 {[%emt 0:02:00]} e5 {[%emt 0:10:00]} 11. Bg5 {[%emt 0:05:30]} Be7 {[%emt 0:00:30]} 12. Nd2 {[%emt 0:03:30]} O-O {[%emt 0:06:30]} 13. Nf1 {[%emt 0:03:30]} b4 {[%emt 0:02:30]} 14. Ne2 {[%emt 0:01:30]} d5 {[%emt 0:08:30]} 15. Neg3 {[%emt 0:01:30]} dxe4 {[%emt 0:12:30]} 16. dxe4 {[%emt 0:00:30]} Rad8 {[%emt 0:00:30]} 17. Qe2 {[%emt 0:01:30]} Nd5 {[%emt 0:02:30]} 18. Bxe7 {[%emt 0:09:30]} Nf4 {[%emt 0:01:30]} 19. Qc4 {[%emt 0:04:30]} Qxe7 {[%emt 0:00:00]} 20. Ra5 {[%emt 0:00:30]} Ne6 {[%emt 0:00:00]} 21. c3 {[%emt 0:00:30]} Qc7 {[%emt 0:02:30]} 22. Rea1 {[%emt 0:05:30]} Rd7 {[%emt 0:03:30]} 23. Ne3 {[%emt 0:02:30]} Rfd8 {[%emt 0:00:30]} 24. h3 {[%emt 0:01:30]} g6 {[%emt 0:03:30]} 25. R5a4 {[%emt 0:09:30]} Rd2 {[%emt 0:08:38]} 26. R1a2 {[%emt 0:08:30]} Qe7 {[%emt 0:02:13]} 27. Ngf1 {[%emt 0:05:30]} R2d7 {[%emt 0:02:07]} 28. Nd5 {[%emt 0:02:30]} Rxd5 {[%emt 0:00:46]} 29. exd5 {[%emt 0:04:30]} Bxd5 {[%emt 0:00:05]} 30. Qxa6 {[%emt 0:01:30]} Bxb3 {[%emt 0:02:18]} 31. cxb4 {[%emt 0:02:30]} Bxa2 {[%emt 0:01:21]} 32. Rxa2 {[%emt 0:00:30]} cxb4 {[%emt 0:00:00]} 33. Qe2 {[%emt 0:01:30]} Nd4 {[%emt 0:00:00]} 34. Qc4 {[%emt 0:00:00]} Qe6 {[%emt 0:00:53]} 35. Ne3 {[%emt 0:02:00]} Rc8 {[%emt 0:02:27]} 36. Qxe6 {[%emt 0:00:37]} Nxe6 {[%emt 0:01:12]} 37. Ra5 {[%emt 0:00:39]} b3 {[%emt 0:05:36]} 38. Rxe5 {[%emt 0:01:56]} Rc2 {[%emt 0:00:20]} 39. Nd1 {[%emt 0:04:33]} Nf4 {[%emt 0:00:50]} 40. Kf1 {[%emt 0:01:30]} Nd3 {[%emt 0:00:25]} 41. Re2 {[%emt 0:03:10]} Kg7 {[%emt 0:00:39]} 42. g3 {[%emt 0:00:41]} h5 {[%emt 0:00:21]} 43. Ne3 {[%emt 0:05:18]} Rxb2 {[%emt 0:00:56]} 44. Rxb2 {[%emt 0:00:55]} Nxb2 {[%emt 0:00:30]} 45. Ke2 {[%emt 0:00:00]} Kf6 {[%emt 0:00:06]} 46. Kd2 {[%emt 0:00:29]} Na4 {[%emt 0:00:06]} 47. Nc4 {[%emt 0:01:32]} Kf5 {[%emt 0:00:56]} 48. f3 {[%emt 0:01:10]} f6 {[%emt 0:00:08]} 49. h4 {[%emt 0:01:45]} g5 {[%emt 0:00:40]} 50. Nd6+ {[%emt 0:00:57]} Ke5 {[%emt 0:00:34]} 51. Nf7+ {[%emt 0:00:16]} Ke6 {[%emt 0:00:11]} 52. Nd8+ {[%emt 0:00:36]} Kd5 {[%emt 0:00:38]} 53. Nf7 {[%emt 0:00:20]} Ke6 {[%emt 0:00:48]} 54. Nd8+ {[%emt 0:00:30]} Kd5 {[%emt 0:00:30]} 55. Nf7 {[%emt 0:00:30]} Ke6 {[%emt 0:00:30]} 56. Nd8+ {[%emt 0:00:30]} Kf5 {[%emt 0:00:30]} 57. Nf7 {[%emt 0:00:30]} Ke6 {[%emt 0:00:30]} 58. Nd8+ {[%emt 0:00:30]} Kd5 {[%emt 0:00:30]} 59. Nf7 {[%emt 0:00:30]} gxh4 {[%emt 0:00:30]} 60. gxh4 {[%emt 0:00:30]} Ke6 {[%emt 0:00:30]} 61. Nd8+ {[%emt 0:00:30]} Kf5 {[%emt 0:00:30]} 62. Nc6 {[%emt 0:00:30]} Kf4 {[%emt 0:00:30]} 63. Nd4 {[%emt 0:00:30]} b2 {[%emt 0:00:30]} 64. Kc2 {[%emt 0:00:30]} Ke3 {[%emt 0:00:30]} 65. Nb3 {[%emt 0:00:30]} Kxf3 {[%emt 0:00:30]} 66. Nd2+ {[%emt 0:00:30]} Kg4 {[%emt 0:00:30]} 67. Kb3 {[%emt 0:00:00]} Nc5+ {[%emt 0:00:00]} 68. Kxb2 {[%emt 0:00:00]} Kxh4 {[%emt 0:00:00]} 69. Kc3 {[%emt 0:00:00]} f5 {[%emt 0:00:00]} 70. Kd4 {[%emt 0:00:24]} Ne4 {[%emt 0:00:04]} 71. Nf3+ {[%emt 0:00:02]} Kg3 {[%emt 0:01:08]} 72. Ke3 {[%emt 0:00:32]} h4 {[%emt 0:00:37]} 73. Nd4 {[%emt 0:00:02]} Kg4 {[%emt 0:01:04]} 74. Ke2 {[%emt 0:00:30]} f4 {[%emt 0:00:30]} 75. Nf3 {[%emt 0:01:13]} Ng5 {[%emt 0:00:00]} 76. Nh2+ {[%emt 0:00:54]} Kg3 {[%emt 0:00:09]} 0-1

[Event "Turkish Cup 2024"]
[Site "Denizli"]
[Date "2024.08.02"]
[Round "6"]
[White "Koseoglu, Omer Umut"]
[Black "Cevizci, Yusuf Baran"]
[Result "1-0"]
[ECO "C01"]
[WhiteElo "1841"]
[BlackElo "2102"]
[Annotator "ChessBase"]
[PlyCount "107"]
[EventDate "2024.08.01"]
[EventType "swiss"]
[EventCountry "TUR"]
[SourceTitle "playchess.com"]
[Source "ChessBase"]
[SourceQuality "1"]
[TimeControl "5400+30"]

1. e4 {[%emt 0:01:00]} e6 {[%emt 0:00:00]} 2. d4 {[%emt 0:00:30]} d5 {[%emt 0:00:30]} 3. exd5 {[%emt 0:00:00]} exd5 {[%emt 0:00:30]} 4. Nf3 {[%emt 0:00:00]} Nc6 {[%emt 0:01:30]} 5. Bb5 {[%emt 0:00:00]} Bd6 {[%emt 0:02:30]} 6. c4 {[%emt 0:00:00]} Bb4+ {[%emt 0:01:30]} 7. Nc3 {[%emt 0:01:30]} Nge7 {[%emt 0:01:30]} 8. O-O {[%emt 0:01:30]} O-O {[%emt 0:01:30]} 9. Bxc6 {[%emt 0:03:30]} bxc6 {[%emt 0:00:30]} 10. c5 {[%emt 0:00:30]} Bxc3 {[%emt 0:02:30]} 11. bxc3 {[%emt 0:00:30]} a5 {[%emt 0:00:30]} 12. Re1 {[%emt 0:01:30]} Bg4 {[%emt 0:01:30]} 13. h3 {[%emt 0:00:30]} Bh5 {[%emt 0:01:30]} 14. g4 {[%emt 0:00:30]} Bg6 {[%emt 0:00:00]} 15. Ne5 {[%emt 0:00:00]} f6 {[%emt 0:01:00]} 16. Nxg6 {[%emt 0:00:00]} Nxg6 {[%emt 0:00:30]} 17. Qe2 {[%emt 0:00:30]} f5 {[%emt 0:00:30]} 18. g5 {[%emt 0:03:30]} Re8 {[%emt 0:00:30]} 19. Qxe8+ {[%emt 0:00:30]} Qxe8 {[%emt 0:00:30]} 20. Rxe8+ {[%emt 0:00:00]} Rxe8 {[%emt 0:00:00]} 21. Kf1 {[%emt 0:00:00]} Rb8 {[%emt 0:00:00]} 22. Ke2 {[%emt 0:01:30]} Kf7 {[%emt 0:02:30]} 23. Kf3 {[%emt 0:00:30]} a4 {[%emt 0:02:30]} 24. Kg3 {[%emt 0:00:30]} Re8 {[%emt 0:01:30]} 25. Bf4 {[%emt 0:01:30]} Nxf4 {[%emt 0:00:30]} 26. Kxf4 {[%emt 0:00:30]} Re2 {[%emt 0:00:30]} 27. f3 {[%emt 0:00:30]} Ke6 {[%emt 0:00:30]} 28. Rb1 {[%emt 0:00:30]} Rxa2 {[%emt 0:00:30]} 29. Rb7 {[%emt 0:00:30]} Kd7 {[%emt 0:00:30]} 30. Kxf5 {[%emt 0:00:00]} Rc2 {[%emt 0:03:30]} 31. Ra7 {[%emt 0:01:00]} Rxc3 {[%emt 0:00:30]} 32. Rxa4 {[%emt 0:00:00]} Rxf3+ {[%emt 0:00:00]} 33. Kg4 {[%emt 0:00:00]} Re3 {[%emt 0:00:00]} 34. h4 {[%emt 0:03:30]} Re4+ {[%emt 0:00:00]} 35. Kg3 {[%emt 0:00:30]} h6 {[%emt 0:01:00]} 36. gxh6 {[%emt 0:00:30]} gxh6 {[%emt 0:00:00]} 37. h5 {[%emt 0:00:30]} Re1 {[%emt 0:02:00]} 38. Ra8 {[%emt 0:02:30]} Rg1+ {[%emt 0:00:30]} 39. Kh4 {[%emt 0:00:30]} Rd1 {[%emt 0:01:30]} 40. Rh8 {[%emt 0:00:00]} Rxd4+ {[%emt 0:00:30]} 41. Kg3 {[%emt 0:00:00]} Re4 {[%emt 0:00:30]} 42. Rxh6 {[%emt 0:00:30]} Re6 {[%emt 0:01:30]} 43. Rh7+ {[%emt 0:00:00]} Re7 {[%emt 0:00:30]} 44. Rh8 {[%emt 0:00:00]} Rf7 {[%emt 0:08:30]} 45. Kg4 {[%emt 0:02:30]} Ke7 {[%emt 0:00:30]} 46. Kg5 {[%emt 0:00:30]} d4 {[%emt 0:09:30]} 47. h6 {[%emt 0:00:30]} Rf1 {[%emt 0:02:30]} 48. h7 {[%emt 0:00:30]} Rh1 {[%emt 0:00:30]} 49. Rc8 {[%emt 0:00:30]} Rxh7 {[%emt 0:00:30]} 50. Rxc7+ {[%emt 0:00:30]} Ke6 {[%emt 0:00:30]} 51. Rxh7 {[%emt 0:00:00]} Kd5 {[%emt 0:00:00]} 52. Kf4 {[%emt 0:00:00]} Kxc5 {[%emt 0:00:00]} 53. Ke4 {[%emt 0:00:00]} Kc4 {[%emt 0:00:00]} 54. Rh1 {[%emt 0:00:00]} 1-0

[Event "Turkish Cup 2024"]
[Site "Denizli"]
[Date "2024.08.02"]
[Round "6"]
[White "Var, Sefa"]
[Black "Turkmen, Ataberk"]
[Result "1-0"]
[ECO "B08"]
[WhiteElo "1841"]
[BlackElo "2022"]
[Annotator "ChessBase"]
[PlyCount "145"]
[EventDate "2024.08.01"]
[EventType "swiss"]
[EventCountry "TUR"]
[SourceTitle "playchess.com"]
[Source "ChessBase"]
[SourceQuality "1"]
[TimeControl "5400+30"]

1. e4 {[%emt 0:05:00]} g6 {[%emt 0:01:00]} 2. d4 {[%emt 0:00:30]} Bg7 {[%emt 0:00:30]} 3. Nc3 {[%emt 0:00:00]} d6 {[%emt 0:00:00]} 4. Nf3 {[%emt 0:00:00]} Bg4 {[%emt 0:01:00]} 5. Be2 {[%emt 0:02:30]} Nc6 {[%emt 0:01:30]} 6. Be3 {[%emt 0:07:30]} Nf6 {[%emt 0:06:30]} 7. O-O {[%emt 0:19:30]} O-O {[%emt 0:00:30]} 8. d5 {[%emt 0:09:30]} Nb8 {[%emt 0:05:30]} 9. h3 {[%emt 0:04:30]} Bxf3 {[%emt 0:07:30]} 10. Bxf3 {[%emt 0:00:30]} Nbd7 {[%emt 0:00:00]} 11. Qd2 {[%emt 0:02:30]} e5 {[%emt 0:01:00]} 12. b4 {[%emt 0:08:30]} Kh8 {[%emt 0:15:30]} 13. Be2 {[%emt 0:07:30]} Ng8 {[%emt 0:00:30]} 14. f3 {[%emt 0:01:30]} f5 {[%emt 0:00:30]} 15. Bd3 {[%emt 0:01:30]} Ne7 {[%emt 0:06:30]} 16. Na4 {[%emt 0:00:30]} f4 {[%emt 0:03:30]} 17. Bf2 {[%emt 0:00:30]} g5 {[%emt 0:00:30]} 18. c4 {[%emt 0:05:30]} h5 {[%emt 0:01:30]} 19. Be2 {[%emt 0:03:39]} Nf6 {[%emt 0:00:30]} 20. Nc3 {[%emt 0:00:41]} Ng6 {[%emt 0:07:30]} 21. Rfc1 {[%emt 0:00:21]} Rf7 {[%emt 0:04:30]} 22. c5 {[%emt 0:02:02]} Bf8 {[%emt 0:01:30]} 23. Rc2 {[%emt 0:01:48]} Rg7 {[%emt 0:13:30]} 24. Rac1 {[%emt 0:00:25]} a6 {[%emt 0:10:09]} 25. Qd3 {[%emt 0:03:55]} Qe8 {[%emt 0:04:05]} 26. cxd6 {[%emt 0:00:37]} Bxd6 {[%emt 0:00:28]} 27. b5 {[%emt 0:00:14]} Qd7 {[%emt 0:06:23]} 28. bxa6 {[%emt 0:00:30]} bxa6 {[%emt 0:00:30]} 29. Kf1 {[%emt 0:00:30]} g4 {[%emt 0:00:30]} 30. hxg4 {[%emt 0:01:09]} hxg4 {[%emt 0:00:16]} 31. fxg4 {[%emt 0:00:01]} Rh7 {[%emt 0:00:04]} 32. Ke1 {[%emt 0:00:47]} Nxg4 {[%emt 0:00:18]} 33. Bxg4 {[%emt 0:00:35]} Qxg4 {[%emt 0:00:09]} 34. Qf3 {[%emt 0:00:00]} Qg5 {[%emt 0:02:04]} 35. Ke2 {[%emt 0:01:10]} Rg8 {[%emt 0:00:35]} 36. Rb1 {[%emt 0:04:30]} Nh4 {[%emt 0:00:11]} 37. Bxh4 {[%emt 0:01:10]} Rxh4 {[%emt 0:00:02]} 38. Kd3 {[%emt 0:00:31]} Qh6 {[%emt 0:00:51]} 39. Ne2 {[%emt 0:00:29]} Rhg4 {[%emt 0:00:43]} 40. Rcc1 {[%emt 0:00:35]} Qg6 {[%emt 0:00:46]} 41. Rh1+ {[%emt 0:00:43]} Kg7 {[%emt 0:00:01]} 42. Rh2 {[%emt 0:02:01]} Kf8 {[%emt 0:02:16]} 43. Rb8+ {[%emt 0:00:30]} Ke7 {[%emt 0:00:00]} 44. Rxg8 {[%emt 0:01:12]} Qxg8 {[%emt 0:00:00]} 45. Qh3 {[%emt 0:00:08]} Kd8 {[%emt 0:00:20]} 46. Kc4 {[%emt 0:01:52]} Kc8 {[%emt 0:00:56]} 47. Rh1 {[%emt 0:02:40]} Kd7 {[%emt 0:00:49]} 48. Kd3 {[%emt 0:01:44]} Ke7 {[%emt 0:00:10]} 49. Rh2 {[%emt 0:00:00]} Kd8 {[%emt 0:00:51]} 50. Kc4 {[%emt 0:00:42]} c6 {[%emt 0:00:49]} 51. Nc3 {[%emt 0:00:07]} Kc8 {[%emt 0:00:12]} 52. Qh6 {[%emt 0:00:20]} Rg6 {[%emt 0:00:47]} 53. Qh7 {[%emt 0:00:30]} Qxh7 {[%emt 0:00:30]} 54. Rxh7 {[%emt 0:00:30]} c5 {[%emt 0:00:30]} 55. Ra7 {[%emt 0:00:30]} Bb8 {[%emt 0:00:13]} 56. Rf7 {[%emt 0:01:01]} Rxg2 {[%emt 0:00:16]} 57. Kxc5 {[%emt 0:00:00]} Rc2 {[%emt 0:00:13]} 58. Kc4 {[%emt 0:00:40]} Bd6 {[%emt 0:01:01]} 59. Ra7 {[%emt 0:00:30]} Rc1 {[%emt 0:00:22]} 60. Rxa6 {[%emt 0:00:16]} f3 {[%emt 0:00:27]} 61. Rxd6 {[%emt 0:00:19]} f2 {[%emt 0:00:37]} 62. Rf6 {[%emt 0:00:30]} f1=Q+ {[%emt 0:00:30]} 63. Rxf1 {[%emt 0:00:00]} Rxf1 {[%emt 0:00:00]} 64. a4 {[%emt 0:01:54]} Ra1 {[%emt 0:00:57]} 65. Kb5 {[%emt 0:01:02]} Rc1 {[%emt 0:00:18]} 66. Kb4 {[%emt 0:00:00]} Kb7 {[%emt 0:00:48]} 67. Nb5 {[%emt 0:00:20]} Ka6 {[%emt 0:00:31]} 68. Nd6 {[%emt 0:00:32]} Rb1+ {[%emt 0:00:30]} 69. Kc5 {[%emt 0:00:14]} Ra1 {[%emt 0:00:26]} 70. Nc4 {[%emt 0:00:47]} Re1 {[%emt 0:00:34]} 71. d6 {[%emt 0:00:21]} Rxe4 {[%emt 0:00:46]} 72. d7 {[%emt 0:00:11]} Rd4 {[%emt 0:00:10]} 73. Nd6 {[%emt 0:00:11]} 1-0